bitfinex-derivatives/quotes_SOLF0:USTF0_20241218
["timestamp","ask_amount","ask_price","bid_price","bid_amount"]
[1734538319938,2.34,217.05,217.0,0.27227]
[1734538320142,2.34,217.05,217.01,2.3045]
[1734538320143,2.3043,217.04,217.01,2.3045]
[1734538320843,4.6442,217.05,217.0,0.27227]
[1734538321142,2.34,217.05,217.0,0.27227]
[1734538321839,3.0844,217.09,217.0,0.27227]
[1734538322035,2.34,217.08,216.99,11.20371998]
[1734538322436,11.20371998,217.15,217.02,11.20371998]
[1734538322637,2.34,217.14,217.02,11.20371998]
[1734538323047,2.3034,217.12,217.08,2.3037]
[1734538323241,2.3034,217.12,217.02,11.20371998]
[1734538323439,1.5973,217.16,217.05,11.20371998]
[1734538323638,4.6432,217.15,217.11,2.3034]
[1734538323846,2.34,217.15,217.11,2.3034]
[1734538324349,1.5507,217.17,217.11,2.3034]
[1734538324350,2.34,217.17,217.14,2.3032]
[1734538325040,2.34,217.2,217.14,11.20371998]
[1734538325241,2.34,217.21,217.14,11.20371998]
[1734538326439,2.3026,217.2,217.16,2.303]
[1734538327243,4.6425,217.21,217.16,2.303]
[1734538327447,1.5973,217.24,217.17,11.20371998]
[1734538327448,2.34,217.24,217.17,11.20371998]
[1734538327842,2.34,217.24,217.2,11.20371998]
[1734538328046,2.302,217.26,217.2,11.20371998]
[1734538328953,2.3022,217.24,217.2,13.50621998]
[1734538329147,2.34,217.28,217.17,11.20371998]
[1734538329351,2.34,217.28,217.16,2.303]
[1734538329552,2.34,217.28,217.15,1.4505]
[1734538329755,2.34,217.28,217.17,11.20371998]
[1734538330543,2.3019,217.27,217.2,11.20371998]
[1734538331153,2.3019,217.27,217.21,2.3024]
[1734538332147,2.3019,217.27,217.22,2.3023]
[1734538332350,2.34,217.3,217.2,11.20371998]
[1734538332751,2.34,217.3,217.18,2.34]
[1734538332752,13.54371998,217.3,217.17,11.20371998]
[1734538332947,1.4494,217.29,217.17,11.20371998]
[1734538333347,2.34,217.28,217.2,11.20371998]
[1734538333749,2.302,217.26,217.21,2.3024]
[1734538334350,2.3023,217.23,217.18,2.3027]
[1734538335251,2.3021,217.25,217.17,13.50661998]
[1734538335553,2.34,217.28,217.17,11.20371998]
[1734538335752,2.3023,217.23,217.17,13.50651998]
[1734538335949,1.4494,217.29,217.17,11.20371998]
[1734538336149,2.34,217.28,217.2,11.20371998]
[1734538336348,2.3021,217.25,217.21,2.3024]
[1734538336750,2.34,217.28,217.2,11.20371998]
[1734538337553,2.302,217.26,217.2,11.20371998]
[1734538337954,2.34,217.28,217.2,11.20371998]
[1734538338157,2.34,217.28,217.17,11.20371998]
[1734538339048,2.3024,217.22,217.17,13.50651998]
[1734538339245,2.34,217.28,217.17,13.50651998]
[1734538339653,2.34,217.28,217.17,11.20371998]
[1734538340351,2.3024,217.22,217.17,13.50651998]
[1734538340551,2.34,217.28,217.17,13.50651998]
[1734538341048,2.34,217.28,217.17,11.20371998]
[1734538341250,2.34,217.28,217.18,2.3027]
[1734538341452,2.3022,217.24,217.17,11.20371998]
[1734538341752,2.34,217.28,217.21,2.3024]
[1734538342552,2.3019,217.26,217.21,2.3024]
[1734538342755,2.34,217.28,217.21,2.3024]
[1734538343455,2.302,217.25,217.21,2.3024]
[1734538344346,2.34,217.28,217.2,11.20371998]
[1734538344553,2.3019,217.27,217.2,11.20371998]
[1734538344952,2.3021,217.25,217.21,2.3024]
[1734538345753,2.34,217.28,217.2,11.20371998]
[1734538345953,2.3019,217.27,217.22,2.3023]
[1734538346656,2.3019,217.27,217.23,2.3022]
[1734538347650,4.6417,217.28,217.24,2.3021]
[1734538347845,2.34,217.28,217.2,11.20371998]
[1734538348257,4.6417,217.28,217.25,2.302]
[1734538348463,2.3017,217.28,217.2,11.20371998]
[1734538348854,3.8634,217.31,217.23,11.20371998]
[1734538349160,3.8634,217.31,217.18,2.34]
[1734538349161,2.34,217.32,217.26,11.20371998]
[1734538349361,2.34,217.34,217.26,11.20371998]
[1734538350060,2.3013,217.32,217.28,2.3017]
[1734538351064,2.3011,217.35,217.31,2.3013]
[1734538351863,2.3011,217.34,217.31,2.3013]
[1734538353065,1.4613,217.38,217.26,11.20371998]
[1734538353261,13.82,217.51,217.29,11.20371998]
[1734538353465,13.82,217.51,217.25,11.20371998]
[1734538353466,2.34,217.44,217.35,11.20371998]
[1734538353657,2.34,217.43,217.35,11.20371998]
[1734538353862,2.34,217.43,217.37,2.3007]
[1734538354260,2.3003,217.42,217.35,11.20371998]
[1734538354464,11.20371998,217.49,217.35,11.20371998]
[1734538354768,2.34,217.45,217.35,11.20371998]
[1734538354963,2.3001,217.43,217.39,2.3004]
[1734538355459,2.34,217.45,217.38,11.20371998]
[1734538355966,4.5261,217.5,217.38,11.20371998]
[1734538356261,2.2999,217.46,217.41,2.3003]
[1734538356861,2.34,217.47,217.38,11.20371998]
[1734538357560,2.3004,217.41,217.36,2.3008]
[1734538357756,2.34,217.47,217.36,2.3008]
[1734538357956,2.34,217.47,217.35,11.20371998]
[1734538358565,11.20371998,217.46,217.32,11.20371998]
[1734538359370,2.3006,217.39,217.34,2.301]
[1734538359667,2.34,217.39,217.34,2.301]
[1734538359866,2.3007,217.38,217.34,2.301]
[1734538365368,2.34,217.39,217.32,11.20371998]
[1734538365873,2.3006,217.38,217.34,2.301]
[1734538367672,2.3008,217.37,217.34,2.301]
[1734538367872,2.34,217.39,217.32,11.20371998]
[1734538369376,2.3008,217.37,217.32,13.50491998]
[1734538369673,2.34,217.39,217.32,13.50491998]
[1734538369873,2.3009,217.36,217.32,13.50491998]
[1734538370572,2.3007,217.38,217.32,11.20371998]
[1734538370767,2.34,217.39,217.32,11.20371998]
[1734538372371,2.3008,217.37,217.32,11.20371998]
[1734538372573,2.34,217.39,217.32,11.20371998]
[1734538372972,2.3009,217.36,217.32,13.50491998]
[1734538373977,2.34,217.39,217.32,11.20371998]
[1734538374777,2.3011,217.35,217.32,11.20371998]
[1734538374978,2.34,217.39,217.1,40.75917442]
[1734538375174,2.34,217.39,217.28,11.20371998]
[1734538375878,11.20371998,217.37,217.22,11.20371998]
[1734538376081,11.20371998,217.34,217.22,11.20371998]
[1734538376275,7.16545925,217.29,217.23,7.16545925]
[1734538376577,7.16545925,217.29,217.2,7.16545925]
[1734538376578,3.9266,217.28,217.2,7.16545925]
[1734538376975,2.3024,217.22,217.17,9.18376014]
[1734538377173,2.3024,217.22,217.21,7.16545925]
[1734538378077,2.3024,217.22,217.17,20.38308494]
[1734538378381,2.3025,217.21,217.17,20.38308494]
[1734538379278,2.3025,217.21,217.17,18.94088494]
[1734538380374,2.3027,217.19,217.17,11.1993248]
[1734538380582,2.34,217.23,217.17,11.1993248]
[1734538380875,2.34,217.23,217.14,11.1993248]
[1734538380876,2.3025,217.21,217.14,11.1993248]
[1734538381081,2.34,217.23,217.14,11.1993248]
[1734538381581,2.3028,217.18,217.14,11.1993248]
[1734538381882,2.34,217.23,217.17,11.1993248]
[1734538382276,2.3024,217.22,217.17,13.5021248]
[1734538382478,2.34,217.23,217.17,11.1993248]
[1734538383580,2.3025,217.21,217.17,11.1993248]
[1734538383980,2.3029,217.18,217.14,11.1993248]
[1734538384282,2.34,217.23,217.14,11.1993248]
[1734538384583,2.34,217.23,217.12,5.59647561]
[1734538384782,2.34,217.24,217.14,11.1993248]
[1734538384981,2.3024,217.22,217.17,2.3029]
[1734538385182,2.34,217.24,217.17,2.3029]
[1734538385379,2.34,217.24,217.14,11.1993248]
[1734538385682,2.3025,217.21,217.14,11.1993248]
[1734538386072,2.3025,217.21,217.16,2.303]
[1734538388980,1.5866,217.28,217.14,11.1993248]
[1734538389181,2.34,217.27,217.14,11.1993248]
[1734538390183,2.34,217.27,217.18,2.3027]
[1734538390686,2.3025,217.21,217.17,2.3029]
[1734538390883,2.34,217.22,217.14,11.1993248]
[1734538391980,2.34,217.22,217.16,2.303]
[1734538391981,2.3025,217.21,217.16,2.303]
[1734538393586,2.34,217.22,217.16,2.303]
[1734538393788,2.3027,217.19,217.16,2.303]
[1734538394482,2.3026,217.2,217.14,13.5024248]
[1734538394679,2.34,217.22,217.14,13.5024248]
[1734538394990,2.3026,217.2,217.14,13.5024248]
[1734538395183,2.34,217.22,217.14,13.5024248]
[1734538395581,2.34,217.22,217.09,11.1993248]
[1734538395780,12.7403248,217.21,217.08,2.3037]
[1734538396084,14.1984248,217.21,217.06,11.1993248]
[1734538396278,14.1984248,217.21,217.07,5.66049948]
[1734538396683,14.1984248,217.21,217.06,11.1993248]
[1734538397586,2.3035,217.11,217.07,2.3039]
[1734538398188,2.3037,217.1,217.06,13.5033248]
[1734538398383,2.34,217.13,217.08,7.17543073]
[1734538399289,2.34,217.13,217.04,3.7515]
[1734538399494,2.34,217.13,217.06,7.17543073]
[1734538399990,2.3039,217.08,217.06,7.17543073]
[1734538400385,2.34,217.13,216.91,55.57607602]
[1734538400386,7.17543073,217.11,216.91,55.57607602]
[1734538400581,2.3042,217.05,217.03,7.17543073]
[1734538401488,2.34,217.08,217.03,7.17543073]
[1734538401489,2.3042,217.04,217.03,7.17543073]
[1734538402190,2.34,217.09,217.03,7.17543073]
[1734538402390,2.34,217.09,217.07,7.17543073]
[1734538402692,2.34,217.09,216.99,5.47505071]
[1734538402891,9.51543073,217.09,217.02,7.17543073]
[1734538403286,2.3039,217.07,217.02,7.17543073]
[1734538403485,9.51543073,217.09,217.02,7.17543073]
[1734538405090,9.51543073,217.09,216.99,5.47505071]
[1734538405289,9.51543073,217.09,217.01,7.17543073]
[1734538405492,7.17543073,217.05,216.94,1.5133]
[1734538405694,7.17543073,217.03,216.94,1.5133]
[1734538405883,2.34,217.02,216.95,7.17543073]
[1734538407292,7.17543073,217.01,216.93,0.52916]
[1734538407592,8.72443073,217.01,216.93,0.52916]
[1734538407792,2.3053,216.94,216.93,0.52916]
[1734538408185,2.3043,217.04,216.93,0.52916]
[1734538408386,2.34,217.06,217.02,7.17543073]
[1734538408990,2.3044,217.03,217.02,7.17543073]
[1734538409191,2.3044,217.03,217.0,7.17543073]
[1734538409490,2.34,217.06,217.0,7.17543073]
[1734538410092,2.34,217.06,216.98,2.3049]
[1734538410286,2.34,217.06,216.97,11.21939293]
[1734538410488,2.34,217.06,216.97,13.52439293]
[1734538410894,2.3043,217.04,216.97,13.52439293]
[1734538411094,2.34,217.06,216.97,11.21939293]
[1734538411392,2.34,217.06,216.98,2.3049]
[1734538411593,2.3045,217.02,216.98,2.3049]
[1734538411789,2.34,217.01,216.98,2.3049]
[1734538411985,2.34,217.01,216.94,12.71269293]
[1734538412196,4.6447,217.01,216.96,2.305]
[1734538412995,2.34,217.01,216.93,0.52916]
[1734538414010,2.305,216.97,216.93,0.52916]
[1734538414997,2.34,217.01,216.93,0.52916]
[1734538415294,11.21939293,216.99,216.93,0.52916]
[1734538416189,2.3053,216.94,216.93,0.52916]
[1734538416392,2.34,216.94,216.82,11.21939293]
[1734538416597,2.3064,216.84,216.8,1.4395]
[1734538416896,2.34,216.85,216.8,1.4395]
[1734538417097,2.34,216.84,216.8,1.4395]
[1734538417296,2.3065,216.83,216.8,1.4395]
[1734538418000,2.34,216.84,216.8,3.7463]
[1734538418190,2.34,216.84,216.8,12.65889293]
[1734538418796,4.6465,216.84,216.78,7.82408287]
[1734538418995,2.34,216.84,216.78,5.51708287]
[1734538419199,2.3067,216.82,216.78,5.51708287]
[1734538419389,2.34,216.84,216.78,5.51708287]
[1734538419591,2.34,216.84,216.77,11.21939293]
[1734538420189,2.3066,216.82,216.78,2.307]
[1734538421001,2.3065,216.83,216.78,2.307]
[1734538421602,2.3065,216.83,216.79,2.3069]
[1734538421800,4.6464,216.84,216.79,2.3069]
[1734538423295,2.3064,216.84,216.77,16.76671672]
[1734538423494,2.306,216.88,216.84,2.3064]
[1734538423699,2.34,216.88,216.8,11.21939293]
[1734538423897,2.34,216.9,216.83,11.21939293]
[1734538424103,1.5123,216.97,216.83,11.21939293]
[1734538424303,2.34,216.96,216.84,1.574]
[1734538424997,2.34,216.96,216.86,2.3061]
[1734538425202,2.34,216.96,216.84,1.574]
[1734538425905,2.34,216.96,216.8,11.21939293]
[1734538425906,11.21939293,216.93,216.8,11.21939293]
[1734538426404,2.3061,216.87,216.82,2.3065]
[1734538426596,2.34,216.86,216.82,2.3065]
[1734538426800,2.3063,216.85,216.8,13.52609293]
[1734538427208,2.34,216.86,216.8,13.52609293]
[1734538427699,2.34,216.86,216.77,5.54732379]
[1734538427900,2.34,216.86,216.73,11.21939293]
[1734538428102,2.34,216.86,216.76,11.21939293]
[1734538428497,2.3065,216.83,216.78,2.307]
[1734538428707,2.34,216.86,216.78,2.307]
[1734538428907,1.5123,216.97,216.79,11.21939293]
[1734538429204,1.5123,216.97,216.82,2.3065]
[1734538429205,11.21939293,216.92,216.82,2.3065]
[1734538429408,2.34,216.91,216.82,2.3065]
[1734538429609,2.3063,216.85,216.8,2.3068]
[1734538429910,4.6463,216.85,216.8,2.3068]
[1734538430506,2.34,216.85,216.79,11.21939293]
[1734538431208,2.34,216.85,216.71,7.9516095]
[1734538431411,1.4846,216.84,216.71,7.9516095]
[1734538431813,2.3069,216.8,216.71,7.9516095]
[1734538432010,4.6469,216.8,216.71,7.9516095]
[1734538432212,2.34,216.8,216.73,11.21939293]
[1734538432414,4.6465,216.83,216.79,2.3069]
[1734538432908,2.34,216.83,216.8,2.3068]
[1734538433306,2.3064,216.84,216.8,2.3068]
[1734538433508,2.34,216.85,216.76,11.21939293]
[1734538434123,1.4846,216.9,216.76,11.21939293]
[1734538434413,2.34,216.89,216.79,11.21939293]
[1734538434611,2.34,216.89,216.8,1.5744]
[1734538435315,2.306,216.88,216.8,1.5744]
[1734538435614,1.5441,216.91,216.8,1.5744]
[1734538435912,2.34,216.94,216.85,11.21939293]
[1734538437116,2.3054,216.93,216.85,11.21939293]
[1734538437411,2.3057,216.91,216.82,11.21939293]
[1734538437617,2.34,216.94,216.82,11.21939293]
[1734538438313,2.3055,216.92,216.87,2.306]
[1734538439210,4.6455,216.92,216.87,2.306]
[1734538440120,2.306,216.88,216.82,11.21939293]
[1734538440322,2.306,216.88,216.83,5.48382176]
[1734538440523,2.34,216.92,216.83,5.48382176]
[1734538440721,2.3058,216.9,216.83,5.48382176]
[1734538441422,2.3058,216.9,216.85,2.3063]
[1734538441720,2.34,216.92,216.85,2.3063]
[1734538442919,2.3059,216.89,216.85,2.3063]
[1734538444820,2.3062,216.86,216.82,2.3065]
[1734538445013,2.34,216.86,216.79,6.3706095]
[1734538445421,2.3068,216.8,216.79,6.3706095]
[1734538445622,2.34,216.81,216.76,0.47449]
[1734538445822,2.34,216.8,216.76,0.47449]
[1734538446022,2.3071,216.78,216.76,0.47449]
[1734538446321,2.34,216.78,216.76,0.47449]
[1734538446525,2.3071,216.77,216.76,0.47449]
[1734538447221,2.3071,216.77,216.7,6.3706095]
[1734538447222,2.3077,216.72,216.7,6.3706095]
[1734538447423,2.34,216.71,216.7,6.3706095]
[1734538447922,2.34,216.71,216.66,31.1226136]
[1734538448325,2.9178,216.82,216.66,31.1226136]
[1734538448326,2.3071,216.78,216.68,2.308]
[1734538448623,2.34,216.77,216.67,11.21939293]
[1734538448818,14.13719293,216.82,216.67,11.21939293]
[1734538448819,2.34,216.76,216.67,11.21939293]
[1734538449025,2.34,216.75,216.7,2.3078]
[1734538449616,2.34,216.75,216.66,5.6401756]
[1734538449825,2.34,216.75,216.7,11.21939293]
[1734538450026,2.34,216.75,216.66,16.85956853]
[1734538450930,2.34,216.75,216.67,2.3081]
[1734538451129,2.34,216.75,216.66,16.85956853]
[1734538451630,2.3076,216.73,216.68,2.3081]
[1734538451925,2.34,216.75,216.63,11.21939293]
[1734538452429,2.3079,216.7,216.61,3.877]
[1734538452630,2.3079,216.7,216.63,11.21939293]
[1734538452631,4.6479,216.7,216.63,11.21939293]
[1734538453129,2.34,216.7,216.63,11.21939293]
[1734538453325,2.34,216.7,216.61,7.09464147]
[1734538454529,2.34,216.7,216.61,2.3088]
[1734538454725,2.34,216.7,216.59,11.21939293]
[1734538455225,2.34,216.7,216.59,16.79656798]
[1734538455430,13.55939293,216.7,216.59,2.309]
[1734538455826,4.5822,216.72,216.59,11.21939293]
[1734538456029,11.21939293,216.79,216.65,11.21939293]
[1734538456229,2.34,216.78,216.65,11.21939293]
[1734538456532,3.0755,216.82,216.68,11.21939293]
[1734538456734,2.34,216.81,216.71,11.21939293]
[1734538457228,2.307,216.79,216.71,11.21939293]
[1734538457434,2.34,216.81,216.71,11.21939293]
[1734538457931,4.6467,216.81,216.75,2.3073]
[1734538458133,2.34,216.81,216.71,11.21939293]
[1734538458535,2.3069,216.79,216.74,2.3074]
[1734538458737,2.34,216.81,216.71,11.21939293]
[1734538459035,2.3069,216.79,216.74,2.3074]
[1734538459635,2.307,216.78,216.74,2.3074]
[1734538460032,2.34,216.81,216.74,2.3074]
[1734538460229,2.3069,216.79,216.74,2.3074]
[1734538460428,2.34,216.81,216.74,2.3074]
[1734538461529,2.3069,216.79,216.74,2.3074]
[1734538461725,13.55939293,216.81,216.69,1.592]
[1734538462034,2.3075,216.74,216.65,11.21939293]
[1734538462334,2.34,216.73,216.64,11.21939293]
[1734538462632,2.34,216.72,216.64,11.21939293]
[1734538463334,2.3078,216.71,216.64,11.21939293]
[1734538463526,2.34,216.72,216.64,11.21939293]
[1734538464628,2.34,216.72,216.65,2.3084]
[1734538465035,2.3079,216.7,216.65,2.3084]
[1734538465636,2.3079,216.7,216.62,12.70599293]
[1734538466132,2.34,216.71,216.67,2.3082]
[1734538466332,2.34,216.71,216.65,11.21939293]
[1734538466738,2.34,216.8,216.68,11.21939293]
[1734538466940,2.34,216.8,216.71,11.21939293]
[1734538467438,1.4473,216.83,216.74,2.3073]
[1734538467633,2.34,216.82,216.74,2.3073]
[1734538468338,13.55939293,216.82,216.72,2.3076]
[1734538468535,13.55939293,216.82,216.7,11.21939293]
[1734538468933,2.3071,216.78,216.74,2.3074]
[1734538469332,2.34,216.82,216.7,11.21939293]
[1734538469530,2.3071,216.78,216.72,2.3076]
[1734538470140,2.3073,216.76,216.71,2.3078]
[1734538470337,2.34,216.76,216.7,11.21939293]
[1734538470542,2.34,216.81,216.7,11.21939293]
[1734538470734,2.3067,216.82,216.77,2.3071]
[1734538470938,2.34,216.81,216.77,2.3071]
[1734538471935,1.4473,216.83,216.76,2.3072]
[1734538472136,1.4473,216.83,216.73,11.21939293]
[1734538472137,2.34,216.81,216.73,11.21939293]
[1734538472741,2.34,216.81,216.71,1.5593]
[1734538473342,2.34,216.81,216.69,5.64887255]
[1734538473834,2.34,216.8,216.7,11.21939293]
[1734538474835,2.34,216.8,216.69,5.64887255]
[1734538475043,13.55939293,216.8,216.67,13.52749293]
[1734538475248,13.55939293,216.8,216.64,12.68889293]
[1734538475543,2.308,216.69,216.64,14.99739293]
[1734538475843,2.34,216.71,216.64,1.4695]
[1734538476038,2.3084,216.65,216.62,0.40412]
[1734538477036,2.34,216.66,216.62,0.40412]
[1734538477236,2.3085,216.64,216.62,0.40412]
[1734538477633,2.34,216.66,216.62,0.40412]
[1734538478642,2.34,216.66,216.64,2.3084]
[1734538479043,2.3081,216.69,216.64,2.3084]
[1734538480143,2.3081,216.68,216.64,2.3084]
[1734538480539,2.36,216.7,216.62,2.71282]
[1734538480744,2.3083,216.67,216.62,2.71282]
[1734538482246,2.36,216.7,216.62,0.40412]
[1734538484052,2.3083,216.66,216.62,2.71282]
[1734538484439,3.1725,216.72,216.62,0.40412]
[1734538484647,2.36,216.71,216.62,0.40412]
[1734538484844,2.36,216.71,216.64,11.21939293]
[1734538485350,1.5918,216.72,216.64,11.21939293]
[1734538485351,6.2595,216.72,216.67,2.3082]
[1734538485645,3.8995,216.72,216.67,2.3082]
[1734538485846,4.6678,216.71,216.67,2.3082]
[1734538489551,2.36,216.71,216.64,11.21939293]
[1734538489753,2.36,216.71,216.68,2.308]
[1734538490151,2.3072,216.77,216.72,2.3076]
[1734538490355,2.36,216.76,216.67,11.21939293]
[1734538490751,2.3072,216.77,216.72,2.3076]
[1734538491049,2.3069,216.8,216.7,11.21939293]
[1734538491250,2.36,216.81,216.67,1.486]
[1734538491446,2.36,216.81,216.69,11.21939293]
[1734538491758,2.36,216.81,216.67,1.486]
[1734538491952,2.36,216.81,216.7,11.21939293]
[1734538492655,2.36,216.81,216.73,11.21939293]
[1734538492958,15.64199293,216.88,216.73,11.21939293]
[1734538493166,15.64199293,216.88,216.72,2.36]
[1734538493167,2.36,216.87,216.76,11.21939293]
[1734538493361,2.3064,216.84,216.8,2.3067]
[1734538493655,2.3064,216.84,216.76,11.21939293]
[1734538493847,2.36,216.87,216.72,2.36]
[1734538493848,2.36,216.87,216.73,11.21939293]
[1734538494155,2.36,216.87,216.77,2.3071]
[1734538494351,2.36,216.87,216.73,11.21939293]
[1734538494559,2.3068,216.8,216.73,11.21939293]
[1734538494852,2.36,216.81,216.73,11.21939293]
[1734538495855,2.3068,216.8,216.74,2.3074]
[1734538496456,2.36,216.85,216.78,2.307]
[1734538496756,2.36,216.85,216.76,11.21939293]
[1734538496949,2.3066,216.83,216.77,2.3071]
[1734538497148,2.36,216.85,216.77,2.3071]
[1734538498250,2.36,216.85,216.74,2.3073]
[1734538499257,2.3071,216.77,216.73,11.21939293]
[1734538499457,2.36,216.8,216.71,5.57800294]
[1734538499859,2.3072,216.77,216.71,7.88570294]
[1734538500155,2.3072,216.77,216.57,226.27461634]
[1734538500156,2.36,216.8,216.67,0.22497]
[1734538500358,1.4842,216.79,216.67,11.44436293]
[1734538500555,12.70359293,216.79,216.67,0.22497]
[1734538500755,3.043,216.78,216.67,0.22497]
[1734538500951,2.3074,216.75,216.67,11.44436293]
[1734538501260,1.4758,216.78,216.67,11.44436293]
[1734538501455,1.4758,216.78,216.7,11.21939293]
[1734538501659,1.4842,216.79,216.7,11.21939293]
[1734538502862,2.3073,216.75,216.7,13.52719293]
[1734538503156,2.3073,216.75,216.7,11.21939293]
[1734538503363,1.4842,216.79,216.7,11.21939293]
[1734538503562,1.4842,216.79,216.71,2.3077]
[1734538504358,1.4842,216.79,216.67,0.22497]
[1734538504562,12.70359293,216.79,216.67,0.22497]
[1734538504763,3.1145,216.78,216.67,0.22497]
[1734538505058,2.3077,216.72,216.67,2.53317]
[1734538505262,4.6677,216.72,216.67,2.53317]
[1734538511158,4.6677,216.72,216.67,8.19134491]
[1734538512060,3.1145,216.78,216.67,5.88314491]
[1734538512266,2.34,216.77,216.69,11.21939293]
[1734538513570,2.3073,216.76,216.71,2.3077]
[1734538515063,2.3073,216.76,216.72,2.3076]
[1734538515269,4.6471,216.78,216.69,11.21939293]
[1734538515472,2.34,216.78,216.69,11.21939293]
[1734538515665,2.3071,216.77,216.72,2.3076]
[1734538515865,2.34,216.78,216.69,11.21939293]
[1734538516265,2.34,216.78,216.67,5.88314491]
[1734538516564,2.3076,216.73,216.68,2.3081]
[1734538516769,3.8703,216.78,216.67,5.88314491]
[1734538516970,2.34,216.78,216.69,11.21939293]
[1734538517170,1.4842,216.79,216.69,11.21939293]
[1734538517471,2.34,216.78,216.69,11.21939293]
[1734538517670,4.647,216.78,216.69,11.21939293]
[1734538518070,4.647,216.78,216.73,2.3074]
[1734538518471,4.647,216.78,216.69,11.21939293]
[1734538518472,2.34,216.78,216.69,11.21939293]
[1734538518671,2.34,216.78,216.67,5.88314491]
[1734538518870,3.0428,216.77,216.67,5.88314491]
[1734538519472,3.0428,216.77,216.67,0.22497]
[1734538519669,1.4842,216.79,216.69,11.21939293]
[1734538519874,3.8242,216.79,216.72,11.21939293]
[1734538520773,2.34,216.79,216.72,11.21939293]
[1734538521177,2.34,216.79,216.69,11.21939293]
[1734538521770,2.3075,216.74,216.69,13.52729293]
[1734538521974,4.6475,216.74,216.69,13.52729293]
[1734538522172,2.34,216.74,216.69,13.52729293]
[1734538522573,2.34,216.74,216.7,2.3079]
[1734538523273,2.34,216.74,216.67,0.22497]
[1734538524379,1.4535,216.73,216.67,0.22497]
[1734538524576,2.3081,216.68,216.67,0.22497]
[1734538524780,4.6481,216.68,216.67,0.22497]
[1734538527477,2.34,216.68,216.67,0.22497]
[1734538527673,2.34,216.72,216.67,11.44436293]
[1734538528576,2.34,216.72,216.68,2.3081]
[1734538528881,4.6477,216.72,216.68,2.3081]
[1734538529478,2.34,216.72,216.67,11.21939293]
[1734538529877,2.3078,216.71,216.67,13.52749293]
[1734538530077,2.34,216.72,216.67,11.21939293]
[1734538530277,4.6477,216.72,216.67,11.21939293]
[1734538530475,2.34,216.72,216.61,9.51316539]
[1734538530880,2.34,216.72,216.62,11.21939293]
[1734538531681,2.308,216.69,216.64,2.3085]
[1734538532078,2.34,216.72,216.61,7.17316539]
[1734538532376,2.34,216.72,216.6,11.21939293]
[1734538532581,1.5346,216.71,216.6,11.21939293]
[1734538532782,1.5346,216.71,216.58,0.64425]
[1734538532977,1.5346,216.71,216.58,6.16292353]
[1734538533184,11.21939293,216.7,216.58,6.16292353]
[1734538533485,11.21939293,216.67,216.58,0.64425]
[1734538533689,11.21939293,216.64,216.58,0.64425]
[1734538533886,3.7807,216.63,216.51,25.482438]
[1734538534084,2.3097,216.54,216.51,25.482438]
[1734538534283,2.34,216.53,216.51,25.482438]
[1734538534683,2.34,216.53,216.48,11.21939293]
[1734538535378,2.34,216.53,216.49,2.3101]
[1734538535887,2.34,216.53,216.48,11.21939293]
[1734538536282,2.34,216.53,216.37,103.45509735]
[1734538536583,2.31,216.5,216.45,11.21939293]
[1734538536787,2.34,216.53,216.45,11.21939293]
[1734538537379,6.9300772,216.6,216.48,11.21939293]
[1734538537584,2.34,216.59,216.51,11.21939293]
[1734538538487,2.3095,216.55,216.51,11.21939293]
[1734538538681,2.34,216.54,216.51,11.21939293]
[1734538539481,2.34,216.54,216.48,11.21939293]
[1734538540386,2.36,216.54,216.48,11.21939293]
[1734538540989,2.3101,216.49,216.44,5.65374495]
[1734538541190,4.6701,216.49,216.44,16.87313788]